bitfinex/quotes_SOLUSD_20250531
["timestamp","ask_amount","ask_price","bid_price","bid_amount"]
[1748652519821,18.64964886,156.73,156.69,34.10456899]
[1748652520000,18.64964886,156.73,156.7,34.10456899]
[1748652523202,41.2,156.75,156.71,34.10456899]
[1748652523604,41.2,156.75,156.7,0.14216157]
[1748652523809,41.2,156.75,156.71,34.10456899]
[1748652524326,52.75421785,156.72,156.65,34.10456899]
[1748652524629,18.64964886,156.7,156.67,34.10456899]
[1748652524831,41.2,156.71,156.68,34.10456899]
[1748652525497,41.2,156.71,156.69,34.10456899]
[1748652525703,41.2,156.71,156.68,6.38233854]
[1748652525704,41.2,156.71,156.7,34.10456899]
[1748652525995,41.2,156.71,156.69,34.10456899]
[1748652526823,34.10456899,156.76,156.7,34.24673056]
[1748652527039,66.20925278,156.75,156.71,34.10456899]
[1748652527497,18.64964886,156.75,156.71,34.10456899]
[1748652527696,59.82964886,156.75,156.71,34.10456899]
[1748652528020,100.31386211,156.75,156.7,34.10456899]
[1748652529241,66.20929312,156.75,156.7,34.10456899]
[1748652529537,18.64964886,156.75,156.72,34.10456899]
[1748652529701,59.82964886,156.75,156.71,34.10456899]
[1748652531220,66.20934148,156.75,156.7,34.10456899]
[1748652531621,18.64964886,156.75,156.72,34.10456899]
[1748652531831,59.82964886,156.75,156.72,34.10456899]
[1748652532131,18.64964886,156.75,156.72,34.10456899]
[1748652532539,37.42,156.79,156.72,34.10456899]
[1748652532540,43.7982807,156.79,156.72,34.10456899]
[1748652532707,18.64964886,156.77,156.72,34.10456899]
[1748652532914,18.64964886,156.77,156.71,34.24673056]
[1748652532915,93.91421785,156.77,156.71,34.24673056]
[1748652533223,100.29325354,156.77,156.71,40.62784262]
[1748652533432,100.29325354,156.77,156.72,34.10456899]
[1748652533433,93.91421785,156.77,156.72,34.10456899]
[1748652533740,41.16,156.76,156.72,34.10456899]
[1748652534319,59.80964886,156.79,156.75,34.10456899]
[1748652534521,41.16,156.8,156.77,34.10456899]
[1748652534715,18.64964886,156.82,156.78,34.10456899]
[1748652535023,41.16,156.81,156.77,34.10456899]
[1748652535210,47.53734759,156.81,156.77,34.10456899]
[1748652535412,18.64964886,156.8,156.75,34.10456899]
[1748652536838,6.37795777,156.79,156.75,34.10456899]
[1748652537054,6.37795777,156.79,156.74,34.24673056]
[1748652537235,18.64964886,156.78,156.73,45.48456899]
[1748652538122,52.75421785,156.76,156.73,11.38]
[1748652538323,52.75421785,156.76,156.71,34.10456899]
[1748652538914,59.133547,156.76,156.71,34.10456899]
[1748652540018,41.16,156.77,156.72,34.24673056]
[1748652540230,41.16,156.77,156.75,34.10456899]
[1748652540653,41.16,156.77,156.74,34.10456899]
[1748652541548,18.64964886,156.74,156.69,34.10456899]
[1748652541739,34.10456899,156.74,156.68,45.48456899]
[1748652541922,34.10456899,156.74,156.67,7.93614872]
[1748652541923,40.48618992,156.7,156.65,34.10456899]
[1748652542121,18.64964886,156.69,156.65,34.10456899]
[1748652542339,59.78964886,156.69,156.65,34.10456899]
[1748652542645,34.10456899,156.75,156.63,19.33305888]
[1748652542646,41.14,156.76,156.68,60.24673056]
[1748652542939,18.64964886,156.75,156.72,34.10456899]
[1748652543141,18.64964886,156.75,156.7,34.10456899]
[1748652543350,52.75421785,156.75,156.7,34.10456899]
[1748652543552,18.64964886,156.75,156.7,34.10456899]
[1748652543862,52.75421785,156.75,156.7,34.10456899]
[1748652544148,52.75421785,156.75,156.7,40.48591772]
[1748652544149,18.64964886,156.75,156.7,40.48591772]
[1748652544347,18.64964886,156.78,156.74,34.10456899]
[1748652544529,59.78964886,156.78,156.74,34.10456899]
[1748652545125,18.64964886,156.75,156.7,6.38134873]
[1748652545330,52.75421785,156.75,156.7,34.10456899]
[1748652545543,18.64964886,156.73,156.69,34.10456899]
[1748652545855,59.78964886,156.73,156.68,6.38239043]
[1748652546154,59.78964886,156.73,156.69,34.10456899]
[1748652547445,59.78964886,156.73,156.7,34.10456899]
[1748652547752,18.64964886,156.78,156.72,34.10456899]
[1748652547937,41.14,156.77,156.73,34.10456899]
[1748652548325,18.64964886,156.77,156.75,34.10456899]
[1748652548742,18.64964886,156.77,156.72,0.14216157]
[1748652548943,18.64964886,156.77,156.74,34.10456899]
[1748652550225,18.64964886,156.77,156.74,40.48451807]
[1748652550430,41.14,156.78,156.75,34.10456899]
[1748652550836,41.14,156.78,156.74,6.37994908]
[1748652550837,18.64964886,156.79,156.76,34.10456899]
[1748652552347,18.64964886,156.79,156.75,34.10456899]
[1748652552851,18.64964886,156.79,156.76,34.10456899]
[1748652553656,18.64964886,156.79,156.73,6.38039941]
[1748652553953,18.64964886,156.77,156.72,51.86533205]
[1748652554131,188.02,156.81,156.73,0.28432314]
[1748652554334,188.02,156.81,156.77,34.10456899]
[1748652554633,18.64964886,156.8,156.74,7.90339234]
[1748652554837,52.75421785,156.8,156.74,42.00796133]
[1748652555147,18.64964886,156.8,156.75,34.10456899]
[1748652555659,59.76964886,156.8,156.75,34.10456899]
[1748652556461,59.76964886,156.8,156.76,6.37917836]
[1748652556665,18.64964886,156.8,156.76,40.48374735]
[1748652556838,59.74964886,156.8,156.76,40.48374735]
[1748652557440,59.74964886,156.8,156.76,6.37917836]
[1748652557961,93.85421785,156.8,156.75,40.4840527]
[1748652558135,93.85421785,156.8,156.75,6.37948371]
[1748652558538,41.1,156.79,156.77,6.37877144]
[1748652559259,18.64964886,156.78,156.75,34.10456899]
[1748652559459,18.64964886,156.78,156.75,6.37947433]
[1748652560150,18.64964886,156.78,156.75,40.48404332]
[1748652560351,18.64964886,156.78,156.74,40.48449935]
[1748652561761,165.54964886,156.78,156.74,40.48449935]
[1748652562041,165.54964886,156.78,156.75,34.10456899]
[1748652562242,165.54964886,156.78,156.74,40.48449935]
[1748652562468,199.65421785,156.78,156.72,11.38]
[1748652562767,34.10456899,156.77,156.72,6.38072561]
[1748652562942,18.64964886,156.75,156.72,6.38072561]
[1748652563140,52.75421785,156.75,156.68,6.38243553]
[1748652563343,81.49836899,156.76,156.66,34.10456899]
[1748652563344,52.75421785,156.71,156.66,34.10456899]
[1748652563645,34.10456899,156.69,156.64,40.48863436]
[1748652564060,41.1,156.68,156.64,40.48863436]
[1748652564641,41.1,156.68,156.66,34.10456899]
[1748652565870,41.1,156.68,156.65,34.10456899]
[1748652566382,18.64964886,156.67,156.64,40.48863436]
[1748652566591,41.1,156.68,156.66,34.10456899]
[1748652566777,146.9,156.73,156.66,34.10456899]
[1748652566966,146.9,156.72,156.71,34.10456899]
[1748652567156,59.74964886,156.74,156.71,34.10456899]
[1748652567358,59.74964886,156.74,156.7,34.10456899]
[1748652567559,93.85421785,156.74,156.69,34.10456899]
[1748652567799,93.85421785,156.74,156.67,34.10456899]
[1748652567800,75.20456899,156.73,156.67,34.10456899]
[1748652567971,75.20456899,156.73,156.68,34.10456899]
[1748652568673,18.64964886,156.72,156.69,34.10456899]
[1748652568870,59.74964886,156.72,156.69,34.10456899]
[1748652569097,41.1,156.72,156.7,34.10456899]
[1748652570159,41.1,156.72,156.71,6.3812137]
[1748652570975,59.74964886,156.72,156.69,6.3820282]
[1748652571386,59.74964886,156.72,156.69,40.48659719]
[1748652571869,18.64964886,156.71,156.69,6.3820282]
[1748652572594,18.64964886,156.71,156.69,40.48659719]
[1748652573367,41.1,156.72,156.69,34.10456899]
[1748652573996,41.1,156.72,156.68,34.10456899]
[1748652574600,41.1,156.72,156.69,34.10456899]
[1748652574775,41.1,156.72,156.68,34.10456899]
[1748652575501,41.08,156.72,156.68,34.10456899]
[1748652575697,18.64964886,156.71,156.69,6.3820282]
[1748652576709,18.64964886,156.71,156.67,6.38284291]
[1748652578476,18.64964886,156.71,156.66,50.06222824]
[1748652578477,34.10456899,156.7,156.66,6.38317]
[1748652578679,18.64964886,156.68,156.66,6.38317]
[1748652579805,18.64964886,156.68,156.65,6.38365783]
[1748652580796,18.64964886,156.68,156.65,40.48822682]
[1748652581314,41.08,156.69,156.65,40.48822682]
[1748652581898,41.08,156.69,156.65,6.38365783]
[1748652583421,18.64964886,156.68,156.65,6.38365783]
[1748652588844,146.9,156.69,156.65,6.38365783]
[1748652589129,41.08,156.7,156.68,21.03857184]
[1748652589939,41.06,156.71,156.68,21.03857184]
[1748652590113,41.06,156.71,156.69,6.3820282]
[1748652590731,146.9,156.72,156.69,6.3820282]
[1748652590928,41.06,156.71,156.69,6.3820282]
[1748652591832,187.96,156.72,156.7,21.03857184]
[1748652592033,146.9,156.72,156.71,27.41978554]
[1748652592426,172.9,156.76,156.71,27.41978554]
[1748652592625,146.9,156.76,156.73,21.03857184]
[1748652592810,41.06,156.75,156.73,21.03857184]
[1748652593004,41.06,156.75,156.71,22.33424796]
[1748652593005,41.06,156.75,156.72,21.03857184]
[1748652593210,177.96,156.76,156.72,21.03857184]
[1748652593408,177.96,156.76,156.73,21.03857184]
[1748652593628,177.96,156.76,156.72,21.03857184]
[1748652593836,18.64964886,156.75,156.71,6.3812137]
[1748652594139,18.64964886,156.75,156.71,21.03857184]
[1748652594636,18.64964886,156.75,156.7,29.0238558]
[1748652595534,177.96,156.76,156.72,21.03857184]
[1748652596233,177.96,156.76,156.72,27.41908939]
[1748652596934,18.64964886,156.75,156.71,21.03857184]
[1748652597124,18.64964886,156.75,156.71,27.41966618]
[1748652597531,59.68964886,156.75,156.71,27.41966618]
[1748652597938,41.04,156.75,156.71,27.41966618]
[1748652598535,41.04,156.75,156.72,21.03857184]
[1748652599413,41.04,156.75,156.71,27.41966618]
[1748652599616,41.04,156.75,156.71,21.03857184]
[1748652599820,41.04,156.75,156.7,29.02382975]
[1748652600248,39.6882207,156.74,156.68,21.03857184]
[1748652600419,21.03857184,156.73,156.68,21.03857184]
[1748652600828,21.03857184,156.73,156.68,27.42093229]
[1748652601156,18.64964886,156.72,156.68,27.42093229]
[1748652601325,41.04,156.71,156.68,21.03857184]
[1748652601518,18.64964886,156.68,156.64,21.03857184]
[1748652601742,41.04,156.67,156.63,27.4230448]
[1748652602018,41.04,156.67,156.63,21.03857184]
[1748652602549,41.04,156.67,156.65,21.03857184]
[1748652602717,41.04,156.68,156.66,21.03857184]
[1748652603137,41.04,156.68,156.65,21.03857184]
[1748652603851,41.04,156.68,156.65,27.42206021]
[1748652604054,41.04,156.68,156.63,27.42266756]
[1748652604342,41.04,156.68,156.64,21.03857184]
[1748652604748,41.04,156.68,156.63,27.42266756]
[1748652605445,18.64964886,156.67,156.63,27.42266756]
[1748652605651,18.64964886,156.67,156.63,27.42295802]
[1748652607453,6.38215513,156.69,156.63,27.42295802]
[1748652607454,59.66964886,156.69,156.66,21.03857184]
[1748652607949,18.64964886,156.69,156.65,21.03857184]
[1748652608124,59.68964886,156.69,156.65,21.03857184]
[1748652608330,59.68964886,156.69,156.66,21.03857184]
[1748652608535,59.68964886,156.69,156.65,21.03857184]
[1748652608747,80.7282207,156.69,156.64,21.03857184]
[1748652608958,18.64964886,156.67,156.62,17.68487901]
[1748652609119,39.6882207,156.67,156.62,32.33857184]
[1748652609319,39.6882207,156.67,156.61,27.42377028]
[1748652609550,39.6882207,156.67,156.62,21.03857184]
[1748652609753,18.64964886,156.65,156.6,6.38562025]
[1748652609921,21.03857184,156.62,156.55,1.5518]
[1748652610120,41.02,156.61,156.56,21.03857184]
[1748652610360,62.05857184,156.61,156.56,21.03857184]
[1748652610526,18.64964886,156.6,156.56,21.03857184]
[1748652611124,18.64964886,156.6,156.55,7.93953554]
[1748652611125,39.6882207,156.6,156.55,7.93953554]
[1748652611335,39.6882207,156.6,156.55,27.42630738]
[1748652611660,18.64964886,156.6,156.55,27.42630738]
[1748652612025,39.6882207,156.6,156.55,21.03857184]
[1748652612231,18.64964886,156.57,156.53,21.03857184]
[1748652612426,18.64964886,156.58,156.52,6.38895987]
[1748652612776,18.64964886,156.58,156.54,21.03857184]
[1748652613141,18.64964886,156.58,156.52,6.38895987]
[1748652613458,18.64964886,156.58,156.54,27.42643063]
[1748652613954,136.9,156.59,156.55,21.03857184]
[1748652615347,136.9,156.59,156.54,27.42643063]
[1748652616324,136.9,156.59,156.54,21.03857184]
[1748652616647,21.03857184,156.57,156.52,27.42753171]
[1748652616833,62.05857184,156.57,156.52,6.38895987]
[1748652617041,62.05857184,156.57,156.52,27.42753171]
[1748652618255,18.64964886,156.56,156.53,21.03857184]
[1748652619152,18.64964886,156.56,156.52,21.03857184]
[1748652619360,176.5882207,156.56,156.51,21.03857184]
[1748652619536,155.54964886,156.56,156.52,21.03857184]
[1748652620553,155.54964886,156.56,156.53,21.03857184]
[1748652620765,155.54964886,156.56,156.52,27.42748659]
[1748652620943,155.54964886,156.56,156.52,21.03857184]
[1748652621146,182.97559002,156.56,156.51,21.03857184]
[1748652621449,176.5882207,156.56,156.51,21.03857184]
[1748652621837,155.54964886,156.56,156.53,6.38855171]
[1748652622040,155.54964886,156.56,156.53,5.38855171]
[1748652622453,136.9,156.56,156.55,21.03857184]
[1748652622958,136.9,156.56,156.54,21.03857184]
[1748652623127,136.9,156.56,156.53,5.38855171]
[1748652623457,136.9,156.56,156.53,26.42712355]
[1748652624033,136.9,156.56,156.54,21.03857184]
[1748652625461,136.9,156.56,156.53,26.42712355]
[1748652625658,136.9,156.56,156.51,15.97270312]
[1748652625659,136.9,156.56,156.52,27.42744161]
[1748652625954,59.66964886,156.55,156.51,27.42791686]
[1748652627239,59.66964886,156.55,156.51,6.38934502]
[1748652627438,59.66964886,156.55,156.52,21.03857184]
[1748652627848,59.66964886,156.55,156.5,27.4282686]
[1748652628234,80.7082207,156.55,156.5,27.4282686]
[1748652628429,80.7082207,156.55,156.5,6.38969676]
[1748652629952,80.7082207,156.55,156.5,27.4282686]
[1748652630133,59.66964886,156.55,156.51,21.03857184]
[1748652630559,80.7082207,156.55,156.5,27.4282686]
[1748652631961,80.7082207,156.55,156.5,6.38969676]
[1748652632146,80.7082207,156.55,156.5,27.4282686]
[1748652632356,18.64964886,156.53,156.5,6.38969676]
[1748652632665,41.02,156.52,156.5,6.38969676]
[1748652633149,41.02,156.52,156.5,27.4282686]
[1748652633940,18.64964886,156.51,156.49,0.99804488]
[1748652634361,136.9,156.5,156.49,0.99804488]
[1748652634951,157.93857184,156.5,156.45,21.03857184]
[1748652635158,59.66964886,156.49,156.45,21.03857184]
[1748652635364,80.7082207,156.49,156.44,11.28]
[1748652635543,59.66964886,156.49,156.44,21.03857184]
[1748652635750,80.7082207,156.49,156.44,21.03857184]
[1748652636275,80.7082207,156.49,156.44,27.43079492]
[1748652636472,18.64964886,156.49,156.46,21.03857184]
[1748652636770,136.9,156.5,156.48,21.03857184]
[1748652636942,136.9,156.5,156.49,21.03857184]
[1748652637138,41.0,156.51,156.49,21.03857184]
[1748652637369,41.0,156.51,156.45,0.28432314]
[1748652637581,41.0,156.51,156.49,21.03857184]
[1748652637756,41.0,156.51,156.49,6.38978245]
[1748652638369,18.64964886,156.53,156.49,27.42835429]
[1748652638574,41.0,156.52,156.49,27.42835429]
[1748652639161,41.0,156.53,156.51,21.03857184]
[1748652639660,41.0,156.53,156.5,21.03857184]
[1748652639851,41.0,156.53,156.49,22.36524414]
[1748652639852,41.0,156.53,156.49,6.38978245]
[1748652640051,41.0,156.53,156.5,21.03857184]
[1748652640449,41.0,156.53,156.51,21.03857184]
[1748652640761,136.9,156.54,156.52,21.03857184]
[1748652640959,136.9,156.58,156.53,21.03857184]
[1748652641144,41.0,156.57,156.55,21.03857184]
[1748652641476,41.0,156.57,156.52,22.50305688]
[1748652641477,41.0,156.57,156.54,21.03857184]
[1748652641844,18.64964886,156.56,156.52,27.42753171]
[1748652642580,18.64964886,156.56,156.52,6.38895987]
[1748652642747,18.64964886,156.56,156.52,27.42753171]
[1748652643177,18.64964886,156.56,156.52,21.03857184]
[1748652643344,18.64964886,156.54,156.5,21.03857184]
[1748652643548,41.0,156.53,156.5,21.03857184]
[1748652643748,41.0,156.53,156.49,27.42870772]
[1748652643948,18.64964886,156.52,156.48,27.42906096]
[1748652644173,18.64964886,156.52,156.48,21.03857184]
[1748652644385,176.5882207,156.52,156.46,27.42996996]
[1748652644548,176.5882207,156.52,156.47,21.03857184]
[1748652644877,176.5882207,156.52,156.46,6.39139812]
[1748652645082,26.0,156.48,156.46,21.03857184]
[1748652645377,26.0,156.48,156.46,27.42990477]
[1748652647071,41.0,156.49,156.46,6.39133293]
[1748652647278,41.0,156.49,156.46,21.03857184]
[1748652648492,136.9,156.51,156.47,21.03857184]
[1748652648661,136.9,156.51,156.45,19.23253772]
[1748652648662,41.0,156.5,156.48,21.03857184]
[1748652649166,41.0,156.5,156.45,33.87937184]
[1748652649167,18.64964886,156.49,156.45,33.87937184]
[1748652649576,18.64964886,156.49,156.45,40.27116549]
[1748652650082,18.64964886,156.49,156.45,19.23259365]
[1748652650261,18.64964886,156.49,156.45,40.27116549]
[1748652650454,18.64964886,156.49,156.45,33.87937184]
[1748652650660,18.64964886,156.49,156.45,12.8408]
[1748652650852,18.64964886,156.49,156.45,33.87937184]
[1748652651289,18.64964886,156.49,156.45,17.67177962]
[1748652651667,18.64964886,156.49,156.45,6.39177962]
[1748652652214,18.64964886,156.49,156.44,27.43069578]
[1748652652789,39.6882207,156.49,156.42,26.0]
[1748652652959,18.64964886,156.46,156.42,21.03857184]
[1748652653279,59.62964886,156.46,156.43,21.03857184]
[1748652653468,40.98,156.46,156.44,21.03857184]
[1748652653787,136.9,156.48,156.45,21.03857184]
[1748652654079,136.9,156.48,156.42,21.18073341]
[1748652654080,136.9,156.48,156.46,21.03857184]
[1748652654690,136.9,156.48,156.45,21.03857184]
[1748652655501,136.9,156.48,156.46,27.42998178]
[1748652655995,136.9,156.48,156.45,27.43037847]
[1748652656602,177.88,156.48,156.45,27.43037847]
[1748652658191,136.9,156.48,156.47,21.03857184]
[1748652658493,136.9,156.48,156.47,21.18073341]
[1748652658690,59.62964886,156.53,156.47,21.18073341]
[1748652659003,18.64964886,156.54,156.51,21.03857184]
[1748652659203,59.62964886,156.54,156.51,21.03857184]
[1748652659506,59.62964886,156.54,156.5,21.03857184]
[1748652660003,59.62964886,156.54,156.46,18.00142314]
[1748652660004,18.64964886,156.54,156.49,21.03857184]
[1748652660299,40.98,156.53,156.49,21.03857184]
[1748652660600,40.98,156.53,156.49,26.92858891]
[1748652661102,18.64964886,156.52,156.46,32.27857184]
[1748652661285,18.64964886,156.5,156.46,11.24]
[1748652661484,40.98,156.49,156.45,27.43027156]
[1748652661791,40.98,156.49,156.48,21.03857184]
[1748652661995,40.98,156.49,156.47,21.03857184]
[1748652662323,40.98,156.49,156.44,6.39215268]
[1748652662473,18.64964886,156.48,156.45,21.03857184]
[1748652663117,18.64964886,156.48,156.43,21.03857184]
[1748652663286,39.6882207,156.48,156.43,21.03857184]
[1748652663483,39.6882207,156.48,156.42,21.03857184]
[1748652663699,39.6882207,156.48,156.43,21.03857184]
[1748652664205,46.0788789,156.48,156.43,21.03857184]
[1748652664579,39.6882207,156.48,156.43,27.43119676]
[1748652664800,46.07886513,156.48,156.43,21.03857184]
[1748652664982,39.6882207,156.48,156.43,27.43119096]
[1748652665608,11.24,156.5,156.45,21.03857184]
[1748652665794,11.24,156.5,156.47,21.03857184]
[1748652665795,40.96,156.48,156.47,21.03857184]
[1748652666118,40.96,156.48,156.45,21.03857184]
[1748652666686,46.07771269,156.51,156.46,21.03857184]
[1748652666892,40.96,156.5,156.46,21.03857184]
[1748652667100,18.64964886,156.49,156.46,21.03857184]
[1748652668914,18.64964886,156.49,156.46,27.42995024]
[1748652669414,40.96,156.5,156.46,27.42995024]
[1748652669621,40.96,156.5,156.47,21.03857184]
[1748652669934,21.03857184,156.5,156.45,21.03857184]
[1748652670092,40.96,156.5,156.46,27.42983708]
[1748652670504,18.64964886,156.49,156.44,21.03857184]
[1748652670786,18.64964886,156.49,156.43,21.03857184]
[1748652670787,157.93857184,156.48,156.43,21.03857184]
[1748652670987,157.93857184,156.48,156.4,11.24]
[1748652670988,18.64964886,156.46,156.4,11.24]
[1748652671218,40.96,156.45,156.42,21.03857184]
[1748652672318,40.96,156.45,156.41,27.43197721]
[1748652673116,40.96,156.45,156.42,21.03857184]
[1748652674028,40.96,156.45,156.44,21.03857184]
[1748652674187,136.9,156.47,156.44,21.03857184]
[1748652674386,177.86,156.47,156.43,6.39233965]
[1748652674736,40.94,156.48,156.46,21.03857184]
[1748652674911,40.94,156.48,156.44,21.03857184]
[1748652675617,59.58964886,156.49,156.46,21.03857184]
[1748652675918,59.58964886,156.49,156.45,21.03857184]
[1748652676215,87.01856735,156.49,156.44,22.62647184]
[1748652676703,39.6882207,156.45,156.4,6.39386189]
[1748652676903,21.03857184,156.47,156.42,21.03857184]
[1748652677115,59.58964886,156.46,156.42,21.03857184]
[1748652677322,40.94,156.46,156.44,21.03857184]
[1748652677504,40.94,156.46,156.45,21.03857184]
[1748652678498,136.9,156.48,156.45,21.03857184]
[1748652678729,177.84,156.48,156.46,21.03857184]
[1748652679027,136.9,156.48,156.46,21.03857184]
[1748652679205,136.9,156.48,156.47,21.03857184]
[1748652679598,40.94,156.5,156.47,21.03857184]
[1748652679793,136.9,156.53,156.49,21.03857184]
[1748652679995,40.94,156.52,156.5,21.03857184]
[1748652680216,40.94,156.52,156.47,26.0]
[1748652680217,136.9,156.53,156.51,21.03857184]
[1748652680399,59.58964886,156.54,156.51,27.42772088]
[1748652680604,59.58964886,156.54,156.5,21.03857184]
[1748652680993,18.64964886,156.53,156.49,21.03857184]
[1748652681200,39.6882207,156.53,156.48,27.42916488]
[1748652681716,39.6882207,156.53,156.48,6.39059304]
[1748652681893,39.6882207,156.51,156.46,21.03857184]
[1748652682098,40.94,156.5,156.48,21.03857184]
[1748652682316,18.64964886,156.52,156.48,21.03857184]
[1748652682490,40.94,156.51,156.48,21.03857184]
[1748652682916,40.94,156.51,156.47,21.03857184]
[1748652684506,40.94,156.51,156.48,21.03857184]
[1748652685038,40.94,156.51,156.49,27.42875651]
[1748652685213,40.94,156.51,156.5,21.03857184]
[1748652685999,39.6882207,156.58,156.51,1.73126157]
[1748652686208,18.64964886,156.58,156.55,21.03857184]
[1748652686424,136.9,156.62,156.56,21.03857184]
[1748652686635,177.82,156.62,156.59,21.03857184]
[1748652687063,136.9,156.62,156.6,6.38569604]
[1748652687329,18.64964886,156.62,156.57,6.38691958]
[1748652687500,18.64964886,156.62,156.58,21.03857184]
[1748652688403,21.03857184,156.62,156.56,27.42581938]
[1748652689102,18.64964886,156.61,156.57,21.03857184]
[1748652691141,18.64964886,156.61,156.56,27.42581938]
[1748652691299,46.07355179,156.61,156.55,27.42625391]
[1748652691506,39.6882207,156.61,156.55,27.42625391]
[1748652691717,39.6882207,156.61,156.56,21.03857184]
[1748652692025,18.64964886,156.59,156.55,27.42625391]
[1748652692234,40.9,156.59,156.57,21.03857184]
[1748652693111,40.9,156.59,156.56,21.03857184]
[1748652693429,40.9,156.59,156.57,27.42522452]
[1748652694454,40.9,156.59,156.57,6.38665268]
[1748652695108,136.9,156.6,156.57,6.38665268]
[1748652695109,136.9,156.6,156.58,21.03857184]
[1748652695310,136.9,156.6,156.59,21.03857184]
[1748652695519,40.88,156.62,156.59,27.42467567]
[1748652696737,18.64964886,156.63,156.59,27.42467567]
[1748652697209,59.52964886,156.63,156.59,27.42467567]
[1748652697611,18.64964886,156.62,156.57,6.3868225]
[1748652697811,39.6882207,156.62,156.56,21.03857184]
[1748652698640,18.64964886,156.62,156.56,21.03857184]
[1748652698839,39.6882207,156.62,156.56,21.03857184]
[1748652699040,46.07328671,156.62,156.57,21.03857184]
[1748652699426,18.64964886,156.6,156.56,21.03857184]
[1748652699626,18.64964886,156.6,156.55,27.42630738]
[1748652699825,40.88,156.59,156.55,27.42630738]
[1748652700938,40.88,156.59,156.56,21.03857184]
[1748652701724,40.88,156.59,156.58,21.03857184]
[1748652702333,40.88,156.59,156.57,21.03857184]
[1748652702531,40.88,156.59,156.58,6.38651168]
[1748652702843,18.64964886,156.61,156.58,6.38651168]
[1748652705540,18.64964886,156.61,156.58,27.42508352]
[1748652706317,136.9,156.62,156.58,27.42508352]
[1748652706521,136.9,156.62,156.59,27.42457054]
[1748652706821,136.9,156.62,156.59,6.3859987]
[1748652707037,157.93857184,156.62,156.57,27.42539082]
[1748652708042,18.64964886,156.59,156.54,58.25857184]
[1748652708245,136.9,156.61,156.58,21.03857184]
[1748652708429,136.9,156.61,156.6,21.03857184]
[1748652708623,136.9,156.61,156.6,27.42426788]
[1748652710150,136.9,156.61,156.58,21.03857184]
[1748652710331,136.9,156.61,156.58,27.42495993]
[1748652710529,177.76,156.61,156.57,27.42543388]
[1748652710943,177.76,156.61,156.57,6.38686204]
[1748652711130,177.76,156.61,156.57,27.42543388]
[1748652711942,176.5882207,156.6,156.54,22.70207184]
[1748652713039,176.5882207,156.6,156.54,29.09009203]
[1748652713359,176.5882207,156.6,156.55,21.03857184]
[1748652713543,155.54964886,156.6,156.55,21.03857184]
[1748652713947,155.54964886,156.6,156.56,21.03857184]
[1748652714154,176.5882207,156.6,156.55,21.03857184]
[1748652715161,155.54964886,156.6,156.55,21.03857184]
[1748652715372,176.5882207,156.6,156.55,21.03857184]
[1748652715542,182.97403854,156.6,156.55,21.03857184]
[1748652715862,18.64964886,156.58,156.54,27.42659203]
[1748652716160,40.84,156.57,156.54,21.03857184]
[1748652716354,40.84,156.57,156.53,27.42701535]
[1748652716950,40.84,156.57,156.54,21.03857184]
[1748652717655,40.84,156.57,156.53,27.42701535]
[1748652718242,40.84,156.57,156.54,21.03857184]
[1748652718852,40.84,156.57,156.53,27.42701535]
[1748652719358,40.84,156.57,156.52,11.16]
[1748652719359,18.64964886,156.56,156.52,21.03857184]
[1748652719543,18.64964886,156.56,156.51,27.42757927]
[1748652719743,155.54964886,156.56,156.51,27.42757927]
[1748652720168,176.5882207,156.56,156.51,27.42757927]
[1748652720346,182.97564683,156.56,156.5,27.42822938]
[1748652720551,18.64964886,156.54,156.49,17.55007274]
[1748652720761,40.84,156.53,156.5,21.03857184]
[1748652721563,40.84,156.53,156.5,27.42797879]
[1748652722771,136.9,156.56,156.52,21.03857184]
[1748652723065,40.84,156.59,156.55,21.03857184]
[1748652723245,40.84,156.59,156.56,21.03857184]
[1748652723772,40.84,156.59,156.57,6.38691958]
[1748652724138,18.64964886,156.61,156.57,6.38691958]
[1748652724467,176.5882207,156.62,156.57,6.38691958]
[1748652724775,155.54964886,156.62,156.57,27.42549142]
[1748652725138,40.84,156.61,156.57,27.42549142]
[1748652726749,155.54964886,156.62,156.57,27.42549142]
[1748652726948,40.84,156.61,156.57,21.03857184]
[1748652727149,18.64964886,156.6,156.56,27.42578138]
[1748652727363,18.64964886,156.6,156.56,21.03857184]
[1748652727549,18.64964886,156.6,156.56,27.42579484]
[1748652727752,18.64964886,156.6,156.57,21.03857184]
[1748652728069,40.84,156.61,156.57,21.03857184]
[1748652728767,40.84,156.61,156.58,6.38651168]
[1748652728944,40.84,156.61,156.57,27.42540815]